bitfinex-derivatives/quotes_BTCF0:USTF0_20251108
["timestamp","ask_amount","ask_price","bid_price","bid_amount"]
[1762574351308,0.60531137,102730.0,102720.0,0.18540845]
[1762574352314,0.60531137,102730.0,102720.0,0.10190965]
[1762574353212,0.60531137,102730.0,102720.0,0.04659]
[1762574353411,0.60531137,102730.0,102720.0,0.18540845]
[1762574353713,0.96611137,102730.0,102720.0,0.18540845]
[1762574354308,0.96611137,102730.0,102720.0,0.10190965]
[1762574362920,0.94811137,102730.0,102720.0,0.10090965]
[1762574366222,0.8787257,102730.0,102720.0,0.10090965]
[1762574368023,0.8787257,102730.0,102720.0,0.19832475]
[1762574368716,0.8787257,102730.0,102720.0,0.10090965]
[1762574370523,0.8787257,102730.0,102720.0,0.30965407]
[1762574370715,0.8787257,102730.0,102720.0,0.32306407]
[1762574370716,0.83714218,102730.0,102720.0,0.32306407]
[1762574370918,0.11554218,102730.0,102720.0,0.32306407]
[1762574371116,0.11392218,102730.0,102720.0,0.68386407]
[1762574371718,0.12666218,102730.0,102720.0,0.56412475]
[1762574371918,0.58486788,102730.0,102720.0,0.31955407]
[1762574372115,0.5152757,102730.0,102720.0,0.11080965]
[1762574372519,0.5152757,102730.0,102720.0,0.06631965]
[1762574373521,0.62660502,102730.0,102720.0,0.06631965]
[1762574373720,0.5152757,102730.0,102720.0,0.06631965]
[1762574373917,0.58486788,102730.0,102720.0,0.06631965]
[1762574374123,0.1524852,102720.0,102710.0,0.0001456]
[1762574374421,0.69418441,102720.0,102710.0,0.0001456]
[1762574374812,0.04233,102690.0,102680.0,0.62754869]
[1762574375012,0.1292797,102690.0,102680.0,0.62754869]
[1762574375216,0.07710988,102690.0,102680.0,0.62754869]
[1762574375416,0.07710988,102690.0,102680.0,0.68286834]
[1762574376323,0.07810988,102690.0,102680.0,0.68286834]
[1762574377827,0.07910988,102690.0,102680.0,0.68286834]
[1762574378128,0.08010988,102690.0,102680.0,0.68286834]
[1762574379125,0.08010988,102690.0,102680.0,0.57153902]
[1762574379326,0.08010988,102690.0,102680.0,0.68286834]
[1762574383126,0.07810988,102690.0,102680.0,0.68286834]
[1762574383428,0.08110988,102690.0,102680.0,0.68286834]
[1762574383621,0.08010988,102690.0,102680.0,0.68286834]
[1762574383822,0.08110988,102690.0,102680.0,0.68286834]
[1762574384431,0.08110988,102690.0,102680.0,0.83246834]
[1762574384822,0.1437735,102690.0,102680.0,0.73502004]
[1762574385022,0.04633,102690.0,102680.0,0.83247304]
[1762574387423,0.1437736,102690.0,102680.0,0.83247304]
[1762574387925,0.1417736,102690.0,102680.0,0.83247304]
[1762574388923,0.04433,102690.0,102680.0,0.83247304]
[1762574390430,0.1417736,102690.0,102680.0,0.58487004]
[1762574390731,0.1547536,102690.0,102680.0,0.22407004]
[1762574390927,0.1547536,102690.0,102680.0,0.05742107]
[1762574391234,0.55033348,102690.0,102680.0,0.04363107]
[1762574391525,0.55033348,102690.0,102680.0,0.00010107]
[1762574391526,0.5155536,102690.0,102680.0,0.00010107]
[1762574392124,0.5155536,102690.0,102680.0,0.15388417]
[1762574392430,0.19378985,102690.0,102680.0,0.32053314]
[1762574392628,0.56756985,102690.0,102680.0,0.04264107]
[1762574395131,0.56756985,102690.0,102680.0,0.00010107]
[1762574395331,0.1540031,102680.0,102670.0,0.0001456]
[1762574395628,0.56681935,102680.0,102670.0,0.0001456]
[1762574396425,0.56781935,102680.0,102670.0,0.0011456]
[1762574396724,0.56781935,102680.0,102640.0,0.26616002]
[1762574396725,0.1406816,102650.0,102640.0,0.26616002]
[1762574396923,0.14078267,102650.0,102640.0,0.26616002]
[1762574397130,0.15472267,102650.0,102640.0,0.26616002]
[1762574397331,0.14078267,102650.0,102640.0,0.32147967]
[1762574397727,0.0974911,102640.0,102620.0,1.15561124]
[1762574397929,0.1536311,102640.0,102630.0,0.1204306]
[1762574398131,0.1536311,102640.0,102630.0,0.25338992]
[1762574398327,0.1536311,102640.0,102630.0,0.30870957]
[1762574398526,0.06895108,102640.0,102630.0,0.30870957]
[1762574398723,0.16644218,102640.0,102630.0,0.30870957]
[1762574399129,0.06995108,102640.0,102630.0,0.32148957]
[1762574399430,0.16944218,102640.0,102630.0,0.32148957]
[1762574399935,0.16744218,102640.0,102630.0,0.32148957]
[1762574400135,0.07095108,102640.0,102630.0,0.32148957]
[1762574400332,0.01381108,102640.0,102630.0,0.92588957]
[1762574400836,0.01381108,102640.0,102630.0,0.68228957]
[1762574401324,0.00010107,102650.0,102640.0,0.1548312]
[1762574401527,0.01209001,102660.0,102650.0,0.1548217]
[1762574401723,0.0001456,102660.0,102650.0,0.62695102]
[1762574401930,0.1406582,102680.0,102670.0,0.1527227]
[1762574402130,0.1406582,102680.0,102670.0,0.26405202]
[1762574402331,0.0552189,102680.0,102670.0,0.31937167]
[1762574402534,0.0120189,102680.0,102670.0,0.31937167]
[1762574402734,0.03465018,102690.0,102680.0,0.1547932]
[1762574402929,0.0001456,102690.0,102680.0,0.32144217]
[1762574403128,0.0001456,102690.0,102680.0,0.68224217]
[1762574403839,0.0001456,102690.0,102680.0,1.47160217]
[1762574404034,0.0011456,102690.0,102680.0,1.22812217]
[1762574404230,0.0011456,102690.0,102680.0,1.58293149]
[1762574404430,0.53608158,102710.0,102700.0,0.1546342]
[1762574404732,0.53608158,102710.0,102700.0,0.76760773]
[1762574404733,0.03465018,102710.0,102700.0,0.76760773]
[1762574405029,0.53606798,102720.0,102710.0,0.05734]
[1762574405223,0.53606798,102720.0,102710.0,0.11265965]
[1762574405224,0.56034502,102720.0,102710.0,0.11265965]
[1762574405424,0.56034502,102720.0,102710.0,0.04456]
[1762574406128,0.56334502,102720.0,102710.0,0.04456]
[1762574406729,0.1545647,102710.0,102700.0,0.0447056]
[1762574407042,0.55001488,102710.0,102700.0,0.0447056]
[1762574407742,0.55001488,102710.0,102700.0,0.1421398]
[1762574408545,0.55001488,102710.0,102700.0,0.21023945]
[1762574408736,0.53607488,102710.0,102700.0,0.21023945]
[1762574409342,0.55301488,102710.0,102700.0,0.21023945]
[1762574409739,0.55301488,102710.0,102700.0,0.10002525]
[1762574410437,0.55301488,102710.0,102700.0,0.19745945]
[1762574410633,0.55301488,102710.0,102700.0,0.10002525]
[1762574412043,0.55201488,102710.0,102700.0,0.21023945]
[1762574412232,0.55101488,102710.0,102700.0,0.21023945]
[1762574412433,0.55101488,102710.0,102700.0,0.10002525]
[1762574412434,0.55301488,102710.0,102700.0,0.10002525]
[1762574412639,0.55301488,102710.0,102700.0,0.0001456]
[1762574412853,0.55101488,102710.0,102700.0,0.0001456]
[1762574413037,0.55301488,102710.0,102700.0,0.0001456]
[1762574413344,0.55301488,102710.0,102700.0,0.1549198]
[1762574413532,0.55101488,102710.0,102700.0,0.1549198]
[1762574413733,0.55301488,102710.0,102700.0,0.1549198]
[1762574414041,0.55201488,102710.0,102700.0,0.1549198]
[1762574414243,0.55101488,102710.0,102700.0,0.21023945]
[1762574414443,0.55301488,102710.0,102700.0,0.21023945]
[1762574415243,0.45559018,102710.0,102700.0,0.21023945]
[1762574416349,0.45359018,102710.0,102700.0,0.21023945]
[1762574416546,0.45559018,102710.0,102700.0,0.21023945]
[1762574417150,0.42094,102710.0,102700.0,0.21023945]
[1762574417744,0.41994,102710.0,102700.0,0.21023945]
[1762574417944,0.42094,102710.0,102700.0,0.21023945]
[1762574418744,0.5183647,102710.0,102700.0,0.21023945]
[1762574418946,0.42094,102710.0,102700.0,0.21023945]
[1762574419641,0.0462,102710.0,102700.0,0.57103945]
[1762574419947,0.0462,102710.0,102700.0,0.70153034]
[1762574420144,0.02468,102710.0,102700.0,0.70153034]
[1762574420340,0.02368,102710.0,102700.0,0.70153034]
[1762574420536,0.0442,102710.0,102700.0,0.70153034]
[1762574420738,0.0462,102710.0,102700.0,0.70153034]
[1762574421245,0.0452,102710.0,102700.0,0.70153034]
[1762574421544,0.0462,102710.0,102700.0,0.70153034]
[1762574422244,0.06014,102710.0,102700.0,0.70153034]
[1762574424542,0.0462,102710.0,102700.0,0.73805283]
[1762574424941,0.1436247,102710.0,102700.0,0.73805283]
[1762574425547,0.1575647,102710.0,102700.0,0.87487283]
[1762574425750,0.1575647,102710.0,102700.0,0.88765283]
[1762574425751,0.06014,102710.0,102700.0,0.88765283]
[1762574426646,0.0462,102710.0,102700.0,0.88765283]
[1762574427236,0.0462,102710.0,102700.0,0.52685283]
[1762574428549,0.02468,102710.0,102700.0,0.52685283]
[1762574429250,0.08145018,102710.0,102700.0,0.52685283]
[1762574429453,0.08145018,102710.0,102700.0,0.88765283]
[1762574429643,0.0468,102710.0,102700.0,0.88765283]
[1762574431551,0.08145018,102710.0,102700.0,0.88765283]
[1762574432143,0.05933018,102710.0,102700.0,0.88765283]
[1762574432539,0.08145018,102710.0,102700.0,0.88765283]
[1762574432744,0.03765018,102710.0,102700.0,0.88765283]
[1762574433549,0.03765018,102710.0,102700.0,0.97115952]
[1762574433749,0.03565018,102710.0,102700.0,0.97115952]
[1762574433952,0.03665018,102710.0,102700.0,0.88865283]
[1762574435453,0.03565018,102710.0,102700.0,0.88865283]
[1762574435644,0.03565018,102710.0,102700.0,0.88965283]
[1762574438455,0.03465018,102710.0,102700.0,0.88765283]
[1762574438658,0.03665018,102710.0,102700.0,0.89165283]
[1762574439356,0.002,102710.0,102700.0,0.97515952]
[1762574440557,0.001,102710.0,102700.0,0.97315952]
[1762574440756,0.002,102710.0,102700.0,0.97515952]
[1762574441352,0.09021722,102720.0,102710.0,0.1547747]
[1762574441562,0.09021722,102720.0,102710.0,0.37710773]
[1762574442060,0.18763242,102720.0,102710.0,0.29360104]
[1762574443271,0.09021722,102720.0,102710.0,0.44320104]
[1762574443470,0.18963242,102720.0,102710.0,0.44420104]
[1762574443666,0.09221722,102720.0,102710.0,0.52770773]
[1762574443862,0.07009722,102720.0,102710.0,0.52770773]
[1762574444171,0.04691722,102720.0,102710.0,0.52770773]
[1762574444358,0.06915722,102720.0,102710.0,0.52770773]
[1762574444559,0.09232722,102720.0,102710.0,0.52770773]
[1762574444768,0.09432722,102720.0,102710.0,0.52770773]
[1762574445070,0.09432722,102720.0,102710.0,0.52870773]
[1762574445271,0.24371779,102720.0,102710.0,0.44520104]
[1762574445571,0.11165231,102720.0,102710.0,0.44520104]
[1762574446166,0.11165231,102720.0,102710.0,0.44420104]
[1762574446369,0.11165231,102720.0,102710.0,0.52770773]
[1762574447063,0.10965231,102720.0,102710.0,0.52770773]
[1762574447772,0.11165231,102720.0,102710.0,0.52770773]
[1762574448272,0.11165231,102720.0,102710.0,0.37810773]
[1762574449772,0.06724231,102720.0,102710.0,0.37810773]
[1762574451268,0.06724231,102720.0,102710.0,0.73890773]
[1762574451462,0.05003686,102720.0,102710.0,1.06581442]
[1762574451674,0.01165632,102730.0,102720.0,0.1406652]
[1762574451871,0.01165632,102730.0,102720.0,0.80730492]
[1762574452067,0.01165632,102730.0,102720.0,1.07696935]
[1762574452268,0.01165632,102730.0,102720.0,1.05066492]
[1762574452669,0.46995527,102750.0,102740.0,0.1406463]
[1762574452962,0.05197527,102750.0,102740.0,0.81958602]
[1762574453163,0.4709481,102760.0,102740.0,0.81958602]
[1762574453164,0.10915527,102760.0,102750.0,0.1406368]
[1762574453371,0.04441,102760.0,102750.0,0.72376983]
[1762574454176,0.02124,102760.0,102750.0,0.72376983]
[1762574454380,0.02124,102760.0,102750.0,0.72476983]
[1762574454977,0.02124,102760.0,102750.0,0.72376983]
[1762574455178,0.02124,102760.0,102750.0,0.72476983]
[1762574455775,0.4189256,102770.0,102760.0,0.1406273]
[1762574455977,0.4189256,102770.0,102760.0,0.36296033]
[1762574456176,0.0581256,102770.0,102760.0,0.66844068]
[1762574456374,0.06942364,102770.0,102760.0,0.66844068]
[1762574456985,0.16679144,102770.0,102760.0,0.57106338]
[1762574457279,0.16679144,102770.0,102760.0,0.30964068]
[1762574457280,0.53159144,102770.0,102760.0,0.30964068]
[1762574457678,0.07342364,102770.0,102760.0,0.30964068]
[1762574458783,0.17079144,102770.0,102760.0,0.30964068]
[1762574460178,0.17079144,102770.0,102760.0,0.36496033]
[1762574461981,0.05985364,102770.0,102760.0,0.37823033]
[1762574462279,0.05985364,102770.0,102760.0,0.46173702]
[1762574462477,0.05985364,102770.0,102760.0,0.37823033]
[1762574462780,0.01544364,102770.0,102760.0,0.82253702]
[1762574463583,0.01544364,102770.0,102760.0,1.06581702]
[1762574463780,0.07265364,102770.0,102760.0,0.10056965]
[1762574464079,0.53082144,102770.0,102760.0,0.21226338]
[1762574464274,0.53082144,102770.0,102760.0,0.26758303]
[1762574464474,0.53082144,102770.0,102760.0,0.21226338]
[1762574464675,0.53082144,102770.0,102760.0,0.18407634]
[1762574464884,0.61432813,102770.0,102760.0,0.10056965]
[1762574465087,0.61432813,102770.0,102760.0,0.04525]
[1762574465275,0.61432813,102770.0,102760.0,0.002]
[1762574465470,0.6663034,102770.0,102760.0,0.002]
[1762574467581,0.0973868,102750.0,102740.0,0.18104569]
[1762574467780,0.5153968,102750.0,102740.0,0.18304194]
[1762574468077,0.5153968,102750.0,102740.0,0.28043824]
[1762574468283,0.07265364,102770.0,102760.0,0.1414473]
[1762574468478,0.07265364,102770.0,102760.0,0.72458033]
[1762574468678,0.07065364,102770.0,102760.0,0.72458033]
[1762574468879,0.01344364,102770.0,102760.0,0.72458033]
[1762574469284,0.0021456,102770.0,102760.0,1.08538033]
[1762574469680,0.0041456,102770.0,102760.0,1.32966033]
[1762574469884,0.5153612,102790.0,102780.0,0.04407]
[1762574470083,0.5153612,102790.0,102780.0,0.18289634]
[1762574470282,0.5153612,102790.0,102780.0,0.19674805]
[1762574470483,0.5153612,102790.0,102780.0,0.09938965]
[1762574471383,0.5203612,102790.0,102780.0,0.10038965]
[1762574471784,0.5243612,102790.0,102780.0,0.19774805]
[1762574472087,0.5243612,102790.0,102780.0,0.10038965]
[1762574472887,0.5243612,102790.0,102780.0,0.19774805]
[1762574473082,0.5243612,102790.0,102780.0,0.04507]
[1762574473287,0.5243612,102790.0,102780.0,0.10038965]
[1762574473585,0.53582104,102790.0,102780.0,0.10038965]
[1762574473778,0.53582104,102790.0,102780.0,0.05631965]
[1762574475992,0.53582104,102790.0,102780.0,0.001]
[1762574476791,0.53582104,102790.0,102780.0,0.02356]
[1762574476984,0.53582104,102790.0,102780.0,0.04507]
[1762574477292,0.53582104,102790.0,102780.0,0.1424284]
[1762574478293,0.53582104,102790.0,102780.0,0.19774805]
[1762574478898,0.53582104,102790.0,102780.0,0.10038965]
[1762574479495,0.58779631,102790.0,102780.0,0.10038965]
[1762574480794,0.58779631,102790.0,102780.0,0.001]
[1762574480795,0.53582104,102790.0,102780.0,0.001]
[1762574481190,0.60538081,102790.0,102780.0,0.001]
[1762574481996,0.60538081,102790.0,102770.0,0.0001456]
[1762574481997,0.1545684,102780.0,102770.0,0.0001456]
[1762574482191,0.5153684,102780.0,102770.0,0.0001456]
[1762574482796,0.58492817,102780.0,102770.0,0.0001456]
[1762574483791,0.58592817,102780.0,102770.0,0.0001456]
[1762574483985,0.58792817,102780.0,102770.0,0.0011456]
[1762574484597,0.58592817,102780.0,102770.0,0.0001456]
[1762574485503,0.1545968,102750.0,102740.0,0.5022607]
[1762574485688,0.1893158,102750.0,102740.0,0.5022607]
[1762574486188,0.1893158,102750.0,102740.0,0.55758035]
[1762574486793,0.1893158,102750.0,102740.0,0.46018965]
[1762574487302,0.1893158,102750.0,102740.0,0.46118965]
[1762574487995,0.5501158,102750.0,102740.0,0.10038965]
[1762574488194,0.5684753,102750.0,102740.0,0.05831965]
[1762574488498,0.5684753,102750.0,102740.0,0.08161965]
[1762574488702,0.5684753,102750.0,102740.0,0.10345965]
[1762574488902,0.5684753,102750.0,102740.0,0.10245965]
[1762574489096,0.5684753,102750.0,102740.0,0.10345965]
[1762574489297,0.60316408,102750.0,102740.0,0.10345965]
[1762574489493,0.60316408,102750.0,102740.0,0.10245965]
[1762574489698,0.60416408,102750.0,102740.0,0.10245965]
[1762574490098,0.55208558,102750.0,102740.0,0.10245965]
[1762574490606,0.55108558,102750.0,102740.0,0.10045965]
[1762574490805,0.55108558,102750.0,102740.0,0.10145965]
[1762574491411,0.55108558,102750.0,102740.0,0.10045965]
[1762574491708,0.55208558,102750.0,102740.0,0.10245965]
[1762574493004,0.55008558,102750.0,102740.0,0.10045965]
[1762574493203,0.55008558,102750.0,102740.0,0.10245965]
[1762574493705,0.55008558,102750.0,102740.0,0.10145965]
[1762574494009,0.55108558,102750.0,102740.0,0.10145965]
[1762574494211,0.55108558,102750.0,102740.0,0.19885595]
[1762574494502,0.55108558,102750.0,102740.0,0.10145965]
[1762574495313,0.55108558,102750.0,102740.0,0.05631965]
[1762574495808,0.55108558,102750.0,102740.0,0.07961965]
[1762574496410,0.55108558,102750.0,102740.0,0.10145965]
[1762574496610,0.55108558,102750.0,102740.0,0.19885595]
[1762574497513,0.55108558,102750.0,102740.0,0.10145965]
[1762574498313,0.55108558,102750.0,102740.0,0.19885595]
[1762574498512,0.55108558,102750.0,102740.0,0.10145965]
[1762574499318,0.55108558,102750.0,102740.0,0.19885595]
[1762574500415,0.55108558,102750.0,102740.0,0.10145965]
[1762574500622,0.55108558,102750.0,102740.0,0.10045965]
[1762574500920,0.55108558,102750.0,102740.0,0.10145965]
[1762574504818,0.55108558,102750.0,102740.0,0.19885595]
[1762574505217,0.55108558,102750.0,102740.0,0.10145965]
[1762574505526,0.55108558,102750.0,102740.0,0.07961965]
[1762574506022,0.55108558,102750.0,102740.0,0.10096965]
[1762574506617,0.55108558,102750.0,102740.0,0.19836595]
[1762574507821,0.55108558,102750.0,102740.0,0.10096965]
[1762574508822,0.55108558,102750.0,102740.0,0.19836595]
[1762574509024,0.55108558,102750.0,102740.0,0.10096965]
[1762574509223,0.60316408,102750.0,102740.0,0.10096965]
[1762574510125,0.60316408,102750.0,102740.0,0.19836595]
[1762574510624,0.60316408,102750.0,102740.0,0.10096965]
[1762574511413,0.5684753,102750.0,102740.0,0.05631965]
[1762574511822,0.55112638,102750.0,102740.0,0.07841965]
[1762574512324,0.55112638,102750.0,102740.0,0.05631965]
[1762574513025,0.55112638,102750.0,102740.0,0.09976965]
[1762574515221,0.60320488,102750.0,102740.0,0.21104401]
[1762574515425,0.5684753,102750.0,102740.0,0.21104401]
[1762574516429,0.5684753,102750.0,102740.0,0.05631965]
[1762574516926,0.5684753,102750.0,102740.0,0.001]
[1762574520132,0.5163968,102750.0,102740.0,0.001]
[1762574520526,0.56857026,102750.0,102740.0,0.001]
[1762574520830,0.5163968,102750.0,102740.0,0.001]
[1762574521222,0.56856711,102750.0,102740.0,0.001]
[1762574521627,0.5163968,102750.0,102740.0,0.001]
[1762574524934,0.56856271,102750.0,102740.0,0.001]
[1762574526730,0.56856271,102750.0,102740.0,0.0983963]
[1762574527535,0.56856271,102750.0,102740.0,0.28657031]
[1762574527735,0.56856271,102750.0,102740.0,0.19700595]
[1762574527936,0.20776271,102750.0,102740.0,0.19700595]
[1762574528337,0.20776271,102750.0,102740.0,0.30828031]
[1762574529040,0.11037591,102750.0,102740.0,0.30828031]
[1762574529338,0.11037591,102750.0,102740.0,0.66908031]
[1762574529637,0.03478343,102750.0,102740.0,0.65871933]
[1762574529837,0.1077517,102760.0,102750.0,0.1517068]
[1762574530034,0.0941617,102760.0,102750.0,0.28351738]
[1762574530240,0.0941617,102760.0,102750.0,0.64431738]
[1762574530925,0.1072417,102760.0,102750.0,0.64431738]
[1762574531125,0.206619,102760.0,102750.0,0.64531738]
[1762574531329,0.209619,102760.0,102750.0,0.64631738]
[1762574531634,0.1122417,102760.0,102750.0,0.64631738]
[1762574532132,0.0613356,102760.0,102750.0,0.64631738]
[1762574533833,0.0613356,102760.0,102750.0,0.79591738]
[1762574534729,0.1587129,102760.0,102750.0,0.78488738]
[1762574534926,0.1587129,102760.0,102750.0,0.42408738]
[1762574535334,0.5195129,102760.0,102750.0,0.19371622]
[1762574535535,0.1464568,102750.0,102740.0,0.04329]
[1762574535832,0.04311,102750.0,102740.0,0.62585066]
[1762574536033,0.02179,102750.0,102740.0,0.62585066]
[1762574536338,0.02179,102750.0,102740.0,0.68143962]
[1762574536540,0.1404968,102750.0,102740.0,0.68143962]
[1762574536738,0.1535768,102750.0,102740.0,0.14081166]
[1762574537040,0.5153768,102750.0,102740.0,0.12772166]
[1762574538134,0.5153768,102750.0,102740.0,0.23820796]
[1762574538335,0.5022968,102750.0,102740.0,0.32163962]
[1762574539137,0.5032968,102750.0,102740.0,0.32063962]
[1762574539335,0.5022968,102750.0,102740.0,0.32063962]
[1762574539533,0.5032968,102750.0,102740.0,0.32063962]
[1762574540035,0.5022968,102750.0,102740.0,0.22324332]
[1762574540240,0.5032968,102750.0,102740.0,0.32063962]
[1762574542444,0.5032968,102750.0,102740.0,0.22324332]
[1762574542645,0.5092568,102750.0,102740.0,0.22324332]
[1762574542843,0.5092568,102750.0,102740.0,0.13981166]
[1762574544145,0.5092568,102750.0,102740.0,0.23720796]
[1762574544543,0.40591,102750.0,102740.0,0.32063962]
[1762574544946,0.5032968,102750.0,102740.0,0.32063962]
[1762574545652,0.5032968,102750.0,102740.0,0.45777584]
[1762574546250,0.5163768,102750.0,102740.0,0.27694788]
[1762574546947,0.5163768,102750.0,102740.0,0.37434418]
[1762574547152,0.41899,102750.0,102740.0,0.45777584]
[1762574547545,0.40591,102750.0,102740.0,0.45777584]
[1762574547746,0.40591,102750.0,102740.0,0.29091252]
[1762574547945,0.40591,102750.0,102740.0,0.45777584]
[1762574548147,0.04511,102750.0,102740.0,0.81857584]
[1762574548546,0.04511,102750.0,102740.0,0.84479486]
[1762574548744,0.04511,102750.0,102740.0,0.86979507]
[1762574549255,0.04411,102750.0,102740.0,0.86979507]
[1762574549445,0.04511,102750.0,102740.0,0.87279507]
[1762574549645,0.04411,102750.0,102740.0,0.87279507]
[1762574549848,0.04411,102750.0,102740.0,0.87479507]
[1762574550649,0.05008,102750.0,102740.0,0.41747341]
[1762574550852,0.05008,102750.0,102740.0,0.51401507]
[1762574551056,0.05008,102750.0,102740.0,0.84859605]
[1762574551245,0.05008,102750.0,102740.0,0.87481507]
[1762574551446,0.05008,102750.0,102740.0,0.73767885]
[1762574553054,0.04411,102750.0,102740.0,0.73767885]
[1762574553454,0.04411,102750.0,102740.0,0.7377227]
[1762574555154,0.1474668,102750.0,102740.0,0.09955308]
[1762574555448,0.59169846,102750.0,102740.0,0.03000383]
[1762574556457,0.59169846,102750.0,102740.0,0.02700383]
[1762574556656,1.19169846,102750.0,102740.0,0.02700383]
[1762574556949,0.1407763,102740.0,102730.0,0.0001456]
[1762574557157,0.63709643,102740.0,102730.0,0.0001456]
[1762574558943,0.63809643,102740.0,102730.0,0.0001456]
[1762574559545,0.63709643,102740.0,102730.0,0.0001456]
[1762574559753,0.64009643,102740.0,102730.0,0.0001456]
[1762574560158,0.62270467,102740.0,102730.0,0.0001456]
[1762574560352,0.62070467,102740.0,102730.0,0.0001456]
[1762574560560,0.62270467,102740.0,102730.0,0.0001456]
[1762574561059,0.58700796,102740.0,102730.0,0.0001456]
[1762574561258,0.62270175,102740.0,102730.0,0.0001456]
[1762574562058,0.62270175,102740.0,102730.0,0.23789296]
[1762574562059,0.44087379,102740.0,102730.0,0.23789296]
[1762574562356,0.53927009,102740.0,102730.0,0.23789296]
[1762574562758,0.53927009,102740.0,102730.0,0.20199296]
[1762574563156,0.43987379,102740.0,102730.0,0.1544613]
[1762574563363,0.53927009,102740.0,102730.0,0.23789296]
[1762574565450,0.53927009,102740.0,102730.0,0.14048726]
[1762574565752,0.53927009,102740.0,102730.0,0.23789306]
[1762574566564,0.70613341,102740.0,102730.0,0.0001456]
[1762574567252,0.62170175,102740.0,102730.0,0.0001456]
[1762574567449,0.62170175,102740.0,102730.0,0.0011456]
[1762574567450,0.70613341,102740.0,102730.0,0.0011456]
[1762574568057,0.70513341,102740.0,102730.0,0.0001456]
[1762574568257,0.1527052,102720.0,102710.0,0.23811946]
[1762574568862,0.1401052,102720.0,102710.0,0.23811946]
[1762574570761,0.1411052,102720.0,102710.0,0.23911946]
[1762574571163,0.04369,102720.0,102710.0,0.23911946]
[1762574571459,0.17493741,102730.0,102720.0,0.1436553]
[1762574571660,0.1402441,102730.0,102720.0,0.32322862]
[1762574571964,0.1402441,102730.0,102720.0,0.46036484]
[1762574573657,0.1422441,102730.0,102720.0,0.37693318]
[1762574574263,0.1412441,102730.0,102720.0,0.38093318]
[1762574574465,0.1412441,102730.0,102720.0,0.46436484]
[1762574574966,0.1412441,102730.0,102720.0,0.46236484]
[1762574575667,0.1412441,102730.0,102720.0,0.46036484]
[1762574575862,0.1432441,102730.0,102720.0,0.46036484]
[1762574576071,0.5040441,102730.0,102720.0,0.46036484]
[1762574576267,0.1432441,102730.0,102720.0,0.46036484]
[1762574576867,0.5030441,102730.0,102720.0,0.46036484]
[1762574577067,0.5040441,102730.0,102720.0,0.46136484]
[1762574577764,0.5020441,102730.0,102720.0,0.46136484]
[1762574577965,0.1402441,102730.0,102720.0,0.46036484]
[1762574578168,0.1412441,102730.0,102720.0,0.46136484]
[1762574579569,0.1402441,102730.0,102720.0,0.46036484]
[1762574579865,0.1412441,102730.0,102720.0,0.46136484]
[1762574580467,0.17593741,102730.0,102720.0,0.46136484]
[1762574580673,0.0011456,102730.0,102720.0,0.9055965]
[1762574580969,0.03469331,102740.0,102730.0,0.1549658]
[1762574581165,0.07942331,102740.0,102730.0,0.5157658]
[1762574581373,0.17681961,102740.0,102730.0,0.59919746]
[1762574581578,0.53761961,102740.0,102730.0,0.14099166]
[1762574581869,0.1421358,102730.0,102720.0,0.27884348]
[1762574582073,0.53758819,102730.0,102720.0,0.27884348]
[1762574582465,0.53758819,102730.0,102720.0,0.37625878]
[1762574582666,0.53758819,102730.0,102720.0,0.37525878]
[1762574583173,0.44018239,102730.0,102720.0,0.37525878]
[1762574583374,0.53758819,102730.0,102720.0,0.37525878]
[1762574583574,0.53858819,102730.0,102720.0,0.37625878]
[1762574584275,0.59067666,102730.0,102720.0,0.37625878]
[1762574585173,0.55602427,102730.0,102720.0,0.37625878]
[1762574585873,0.55602427,102730.0,102720.0,0.27884348]
[1762574586566,0.55502427,102730.0,102720.0,0.27784348]
[1762574586762,0.55602427,102730.0,102720.0,0.27884348]
[1762574586965,0.55602427,102730.0,102720.0,0.37625878]
[1762574587371,0.55502427,102730.0,102720.0,0.37525878]
[1762574587570,0.55602427,102730.0,102720.0,0.37625878]
[1762574588879,0.55502427,102730.0,102720.0,0.37525878]
[1762574589074,0.55602427,102730.0,102720.0,0.37625878]
[1762574591879,0.55602427,102730.0,102720.0,0.45969044]
[1762574592178,0.19522427,102730.0,102720.0,0.45969044]
[1762574592374,0.22990967,102730.0,102720.0,0.45969044]
[1762574592873,0.22890967,102730.0,102720.0,0.45969044]
[1762574593079,0.22990967,102730.0,102720.0,0.45969044]
[1762574593777,0.08777387,102730.0,102720.0,0.45969044]
[1762574594176,0.05308847,102730.0,102720.0,0.45969044]
[1762574594378,0.03568324,102730.0,102720.0,0.82049044]
[1762574594974,0.05770324,102730.0,102720.0,0.82049044]
[1762574595273,0.15510904,102730.0,102720.0,0.82049044]
[1762574595477,0.17781904,102730.0,102720.0,0.82049044]
[1762574595779,0.15510904,102730.0,102720.0,0.82049044]
[1762574595978,0.17781904,102730.0,102720.0,0.82049044]
[1762574596381,0.17781904,102730.0,102720.0,0.76492169]
[1762574598191,0.13308904,102730.0,102720.0,0.76492169]
[1762574598484,0.05770324,102730.0,102720.0,0.76492169]
[1762574598783,0.03568324,102730.0,102720.0,0.76492169]
[1762574599585,0.15510904,102730.0,102720.0,0.76492169]
[1762574600083,0.13308904,102730.0,102720.0,0.76492169]
[1762574600388,0.03568324,102730.0,102720.0,0.76492169]
[1762574600587,0.13308904,102730.0,102720.0,0.76492169]
[1762574600881,0.13208904,102730.0,102720.0,0.76392169]
[1762574601084,0.13308904,102730.0,102720.0,0.76492169]
[1762574601677,0.03568324,102730.0,102720.0,0.76492169]
[1762574602487,0.03568324,102730.0,102720.0,0.87621626]
[1762574602785,0.001,102730.0,102720.0,0.90248872]
[1762574603082,0.08691731,102750.0,102740.0,0.1549563]
[1762574603287,0.08691731,102750.0,102740.0,0.62705087]
[1762574603288,0.03482884,102750.0,102740.0,0.62705087]
[1762574604392,0.03482884,102750.0,102740.0,0.62905087]
[1762574604393,0.03982884,102750.0,102740.0,0.62905087]
[1762574604986,0.03782884,102750.0,102740.0,0.62805087]
[1762574605187,0.03882884,102750.0,102740.0,0.63105087]
[1762574605387,0.03582884,102750.0,102740.0,0.63205087]
[1762574605886,0.0011456,102750.0,102740.0,0.63205087]
[1762574606684,0.53786954,102770.0,102760.0,0.1538174]
[1762574606884,0.53786954,102770.0,102760.0,0.26511197]
[1762574608389,0.03668324,102770.0,102760.0,0.52853457]
[1762574608696,0.0001456,102780.0,102770.0,0.1538079]
[1762574608885,0.0001456,102780.0,102770.0,0.62590247]
[1762574610090,0.0011456,102780.0,102770.0,0.62590247]
[1762574610695,0.0001456,102780.0,102770.0,0.62690247]
[1762574611189,0.0001456,102780.0,102770.0,0.96522247]
[1762574611798,0.0011456,102780.0,102770.0,0.96722247]
[1762574614991,0.0001456,102780.0,102770.0,0.96522247]
[1762574615192,0.0011456,102780.0,102770.0,0.96922247]
[1762574615395,0.0021456,102780.0,102770.0,0.97222247]
[1762574617498,1.22372857,102780.0,102770.0,0.008]
[1762574617695,1.22372857,102780.0,102770.0,0.02965]
[1762574617696,1.112434,102780.0,102770.0,0.02965]
[1762574617998,0.1423874,102760.0,102750.0,0.0565856]